bitfinex-derivatives/quotes_SOLF0:USTF0_20250207
["timestamp","ask_amount","ask_price","bid_price","bid_amount"]
[1738947941499,0.0347315,195.89,195.82,5.1042]
[1738947941799,0.0347315,195.89,195.88,0.03434939]
[1738947941999,4.82,195.95,195.88,0.03434939]
[1738947942195,0.03559082,195.9,195.78,1.5766]
[1738947942699,36.22935425,195.94,195.87,5.1028]
[1738947942991,0.0345823,195.86,195.78,1.5766]
[1738947943192,36.22935425,196.0,195.78,1.5766]
[1738947943389,36.22935425,195.91,195.89,0.03451926]
[1738947943789,36.22935425,195.91,195.78,1.5766]
[1738947944002,36.22935425,195.87,195.78,1.5766]
[1738947944389,36.22935425,195.95,195.78,1.5766]
[1738947945296,0.03467232,195.88,195.85,0.03639814]
[1738947945700,36.22935425,195.88,195.78,1.5766]
[1738947946199,0.03903956,195.88,195.85,0.03633825]
[1738947946402,0.03903956,195.88,195.78,1.5766]
[1738947946592,0.03903956,195.88,195.85,0.0381378]
[1738947947096,4.84,195.87,195.85,0.03656982]
[1738947947398,4.84,195.87,195.57,10.2219]
[1738947947599,36.22935425,195.79,195.64,1.5279]
[1738947947795,5.1055,195.78,195.68,5.1079]
[1738947948000,5.1055,195.78,195.64,1.5279]
[1738947948501,0.03447527,195.73,195.69,0.03228476]
[1738947948897,0.03447527,195.73,195.72,5.107]
[1738947949295,0.03447527,195.73,195.69,0.03228476]
[1738947949500,36.22935425,195.71,195.69,0.03228476]
[1738947949898,0.03447527,195.73,195.69,0.03228476]
[1738947950503,0.03447527,195.73,195.72,5.107]
[1738947950903,101.08,195.83,195.7,36.22935425]
[1738947951105,101.08,195.83,195.77,5.1056]
[1738947951402,101.08,195.83,195.7,36.22935425]
[1738947952105,0.03578147,195.78,195.75,0.03463668]
[1738947955503,0.03578147,195.78,195.76,5.106]
[1738947956402,0.03578147,195.78,195.77,5.1057]
[1738947957105,4.82,195.86,195.75,0.03463668]
[1738947958305,36.22935425,196.1,195.8,36.22935425]
[1738947958500,5.014e-05,195.82,195.81,3.0656]
[1738947958707,5.1,195.99,195.92,5.1018]
[1738947958899,4.82,196.02,195.84,36.22935425]
[1738947959104,36.22935425,196.04,195.84,36.22935425]
[1738947959304,41.04935425,196.04,195.84,36.22935425]
[1738947959805,41.04935425,196.04,195.92,0.03279561]
[1738947959806,36.26574825,195.96,195.92,0.03279561]
[1738947960197,36.22935425,195.96,195.81,3.0656]
[1738947960401,5.101,195.95,195.92,0.03618984]
[1738947960601,36.26502898,195.96,195.81,3.0656]
[1738947960804,36.22935425,195.91,195.81,3.0656]
[1738947961007,4.82,195.97,195.86,5.1032]
[1738947961209,36.22935425,195.91,195.81,3.0656]
[1738947961507,41.33165425,195.91,195.81,3.0656]
[1738947961705,36.22935425,195.91,195.81,3.0656]
[1738947962007,36.22935425,195.87,195.84,0.03599796]
[1738947962207,9.9236,195.86,195.74,5.1065]
[1738947962406,9.9236,195.86,195.61,1.5909]
[1738947962407,36.22935425,195.81,195.61,1.5909]
[1738947962709,36.22935425,195.77,195.61,4.8286]
[1738947962907,36.22935425,195.81,195.61,4.8286]
[1738947963107,36.22935425,195.81,195.64,36.22935425]
[1738947963404,4.82,195.86,195.61,4.8286]
[1738947963405,36.22935425,195.77,195.61,4.8286]
[1738947963601,0.03545133,195.74,195.71,0.03443804]
[1738947963807,0.03545133,195.74,195.61,4.8286]
[1738947964113,5.1063,195.75,195.71,0.03733315]
[1738947964114,4.82,195.75,195.71,0.03733315]
[1738947964311,0.03252953,195.69,195.61,4.8286]
[1738947964611,9.9262,195.75,195.61,4.8286]
[1738947964812,0.03550285,195.67,195.63,0.03306502]
[1738947965216,36.22935425,195.73,195.61,4.8286]
[1738947965412,0.03692784,195.67,195.63,0.03679308]
[1738947967111,0.03692784,195.67,195.65,5.1088]
[1738947967313,0.03692784,195.67,195.63,0.03679308]
[1738947967516,36.22935425,195.81,195.64,36.22935425]
[1738947967713,36.22935425,195.81,195.65,1.5989]
[1738947968212,36.22935425,195.81,195.71,5.1071]
[1738947968417,79.99625181,195.79,195.71,5.1071]
[1738947968606,85.10145181,195.79,195.74,0.0351003]
[1738947968815,36.22935425,195.77,195.74,0.0351003]
[1738947969009,36.22935425,195.77,195.65,1.5989]
[1738947969515,79.99625181,195.79,195.61,1.5945]
[1738947969816,0.03217918,195.73,195.57,1.599]
[1738947970117,36.22935425,195.71,195.57,1.599]
[1738947970317,5.1076,195.7,195.63,5.1094]
[1738947970616,0.03680216,195.68,195.65,0.03441193]
[1738947971815,36.22935425,195.67,195.65,0.03441193]
[1738947972014,36.22935425,195.67,195.51,3.1281]
[1738947972217,0.03680216,195.68,195.54,36.22935425]
[1738947972413,1.6597,195.77,195.58,36.22935425]
[1738947972614,85.10195181,195.78,195.62,36.22935425]
[1738947972920,79.99625181,195.78,195.66,36.22935425]
[1738947973111,79.99625181,195.78,195.77,5.1057]
[1738947973316,81.01780661,195.78,195.77,5.1057]
[1738947973516,81.01780661,195.78,195.66,36.22935425]
[1738947973517,174.04711892,195.78,195.66,36.22935425]
[1738947973814,174.04711892,195.78,195.76,0.03768052]
[1738947974114,0.03887927,195.74,195.63,4.763]
[1738947974510,0.03887927,195.74,195.67,0.03595161]
[1738947974718,174.04711892,195.78,195.71,36.22935425]
[1738947975120,4.86,195.87,195.71,36.22935425]
[1738947975320,36.22935425,195.84,195.66,36.22935425]
[1738947975617,4.86,195.87,195.7,36.22935425]
[1738947975819,1.793e-05,195.77,195.74,36.22935425]
[1738947976017,1.793e-05,195.77,195.75,3.1882]
[1738947976322,82.54884293,195.9,195.75,3.1882]
[1738947976615,83.56977197,195.9,195.83,36.22935425]
[1738947976811,83.56977197,195.9,195.75,127.44099079]
[1738947976812,1.02092904,195.9,195.75,163.67034504]
[1738947977017,1.02092904,195.9,195.85,0.03244491]
[1738947977018,36.2664039,195.88,195.85,0.03244491]
[1738947977217,0.03704965,195.88,195.75,3.1882]
[1738947977419,5.90092904,195.9,195.85,5.1034]
[1738947977619,5.90092904,195.9,195.78,36.22935425]
[1738947977919,5.90092904,195.9,195.75,3.1882]
[1738947977920,36.22935425,195.88,195.75,1.5909]
[1738947978324,0.03524837,195.83,195.8,0.03732135]
[1738947978620,41.33265425,195.87,195.8,0.03732135]
[1738947978820,36.22935425,195.87,195.8,0.03732135]
[1738947979119,36.26191552,195.83,195.8,0.03732135]
[1738947979523,1.6391,195.89,195.8,0.03732135]
[1738947979524,36.22935425,195.87,195.8,0.03732135]
[1738947979817,0.03793416,195.83,195.8,0.03732135]
[1738947980917,36.26728841,195.83,195.8,0.03732135]
[1738947981620,0.03793416,195.83,195.8,0.03732135]
[1738947982721,0.03793416,195.83,195.82,5.1044]
[1738947983126,0.03793416,195.83,195.8,0.03732135]
[1738947983721,36.26728841,195.83,195.8,0.03732135]
[1738947984524,5.1047,195.81,195.8,0.03732135]
[1738947984819,5.1047,195.81,195.73,124.25279079]
[1738947985024,36.22935425,195.79,195.67,3.0468]
[1738947985519,36.22935425,195.79,195.7,5.1075]
[1738947985820,0.03302728,195.76,195.73,0.03291945]
[1738947987024,36.22935425,195.75,195.73,0.03291945]
[1738947987223,36.22935425,195.75,195.61,124.25279079]
[1738947987224,36.22935425,195.75,195.62,1.527]
[1738947987414,5.1073,195.71,195.64,5.1089]
[1738947987620,41.33665425,195.71,195.62,1.527]
[1738947987925,36.22935425,195.71,195.62,1.527]
[1738947988126,36.22935425,195.75,195.62,1.527]
[1738947988328,4.9,195.77,195.62,1.527]
[1738947988526,0.0355691,195.7,195.67,0.03285958]
[1738947988825,36.22935425,195.73,195.67,0.03285958]
[1738947989027,0.03744973,195.7,195.67,0.03285958]
[1738947990528,4.9,195.77,195.67,0.03285958]
[1738947991225,36.22935425,195.75,195.67,0.03285958]
[1738947991426,36.22935425,195.71,195.67,0.03285958]
[1738947992230,41.33665425,195.71,195.67,0.03285958]
[1738947992429,0.03238483,195.73,195.67,0.03285958]
[1738947993132,36.22935425,195.71,195.67,0.03285958]
[1738947993326,5.1081,195.68,195.67,0.03285958]
[1738947993727,36.22935425,195.71,195.67,0.03285958]
[1738947993927,5.1072,195.72,195.67,0.03285958]
[1738947994233,36.22935425,195.71,195.67,0.03285958]
[1738947994433,36.22935425,195.71,195.55,3.0542]
[1738947994629,36.22935425,195.67,195.55,3.0542]
[1738947995133,5.1088,195.66,195.59,5.1104]
[1738947995633,36.22935425,195.67,195.59,5.1104]
[1738947995634,0.03843899,195.64,195.61,0.03288097]
[1738947996034,0.03843899,195.64,195.5,49.20421832]
[1738947996335,36.22935425,195.59,195.5,12.97486407]
[1738947996930,5.111,195.57,195.5,12.97486407]
[1738947997225,0.03362574,195.55,195.52,0.03271861]
[1738947999127,36.22935425,195.53,195.52,0.03271861]
[1738947999332,36.22935425,195.53,195.5,12.97486407]
[1738947999936,5.1122,195.52,195.5,12.97486407]
[1738948000131,36.22935425,195.53,195.5,12.97486407]
[1738948000337,4.86,195.52,195.5,9.65556407]
[1738948000533,5.1125,195.51,195.5,1.74116407]
[1738948001536,5.1136,195.47,195.37,1.5459]
[1738948001733,41.08935425,195.52,195.37,1.5459]
[1738948001936,0.03825538,195.46,195.37,1.5459]
[1738948002832,4.84,195.54,195.37,1.5459]
[1738948003034,4.84,195.54,195.4,36.22935425]
[1738948003235,4.84,195.54,195.41,1.5907]
[1738948003540,36.22935425,195.59,195.44,36.22935425]
[1738948004236,0.03466586,195.53,195.52,5.1122]
[1738948004431,36.22935425,195.63,195.51,3.2135]
[1738948004840,4.82,195.66,195.51,3.2135]
[1738948005138,4.82,195.66,195.52,36.22935425]
[1738948005332,4.82,195.66,195.51,3.2135]
[1738948005333,36.22935425,195.64,195.51,3.2135]
[1738948005533,36.22935425,195.64,195.55,5.1112]
[1738948005737,0.03459458,195.59,195.56,0.03780944]
[1738948006034,4.82,195.68,195.52,36.22935425]
[1738948006239,0.03302415,195.59,195.56,0.03632809]
[1738948006537,4.82,195.68,195.51,3.2135]
[1738948006538,36.22935425,195.64,195.51,3.2135]
[1738948006734,0.03592805,195.59,195.56,0.03732449]
[1738948009143,41.34025425,195.57,195.56,0.03732449]
[1738948009338,36.22935425,195.57,195.56,0.03732449]
[1738948009734,36.22935425,195.57,195.41,3.0949]
[1738948009735,41.02935425,195.57,195.42,1.6048]
[1738948010837,41.33955425,195.6,195.46,5.1137]
[1738948011142,36.22935425,195.6,195.48,0.03388279]
[1738948011343,0.03575745,195.55,195.53,5.1118]
[1738948011638,0.03575745,195.55,195.52,0.03822295]
[1738948012232,4.82,195.61,195.58,5.1106]
[1738948012640,4.82,195.61,195.53,3.0413]
[1738948013042,41.04935425,195.61,195.53,1.5418]
[1738948013444,0.03427796,195.59,195.55,0.03859938]
[1738948013943,137.40935425,195.7,195.55,0.03859938]
[1738948014145,4.82,195.7,195.56,36.22935425]
[1738948014338,36.22935425,195.74,195.56,36.22935425]
[1738948014541,4.82,195.77,195.6,36.22935425]
[1738948014841,238.82140488,195.85,195.54,284.4995]
[1738948014842,4.82,195.79,195.64,36.22935425]
[1738948015045,11.30154717,195.84,195.65,3.0413]
[1738948015244,0.03640916,195.73,195.7,0.03322402]
[1738948015442,36.22935425,195.84,195.7,0.03322402]
[1738948015647,5.1052,195.79,195.7,5.1074]
[1738948015844,36.22935425,195.76,195.65,3.0413]
[1738948016045,41.04935425,195.76,195.65,3.0413]
[1738948016244,5.1073,195.71,195.65,1.5418]
[1738948016448,36.22935425,195.72,195.56,1.6327]
[1738948016645,0.03516958,195.7,195.66,0.03690932]
[1738948016844,5.14286958,195.7,195.62,5.1095]
[1738948017047,5.1077,195.7,195.62,5.1095]
[1738948017252,5.1083,195.67,195.66,0.03847898]
[1738948017441,36.22935425,195.68,195.66,0.03847898]
[1738948017645,36.22935425,195.68,195.56,1.6327]
[1738948017843,36.22935425,195.68,195.65,0.03697832]
[1738948018145,36.22935425,195.68,195.56,1.6327]
[1738948018348,0.03342421,195.68,195.65,0.03426677]
[1738948018552,41.33795425,195.66,195.57,5.1109]
[1738948018746,36.22935425,195.7,195.56,1.6327]
[1738948019147,36.22935425,195.7,195.57,1.6029]
[1738948019344,36.22935425,195.8,195.57,1.6029]
[1738948019345,4.8,195.73,195.57,1.6029]
[1738948019743,0.0392384,195.67,195.63,0.0336489]
[1738948020645,5.2095,195.79,195.63,0.0336489]
[1738948020845,9.9054,195.79,195.63,0.0336489]
[1738948021046,4.8,195.79,195.6,36.22935425]
[1738948021246,5.1057,195.78,195.6,36.22935425]
[1738948021443,36.22935425,195.8,195.64,36.22935425]
[1738948021652,36.22935425,195.84,195.68,36.22935425]
[1738948021853,82.54884293,195.86,195.79,5.1051]
[1738948022044,82.54884293,195.86,195.72,36.22935425]
[1738948022245,7.727e-05,195.78,195.77,5.1057]
[1738948022449,7.727e-05,195.78,195.77,5.13810214]
[1738948022649,82.54884293,195.86,195.77,0.03240214]
[1738948022853,82.54884293,195.86,195.77,124.28519293]
[1738948023154,19.39150067,195.86,195.85,5.1036]
[1738948023348,137.58140488,195.88,195.8,36.22935425]
[1738948023545,101.22,195.95,195.9,5.1021]
[1738948023849,0.03373449,195.86,195.82,0.03577232]
[1738948024053,0.03373449,195.86,195.77,124.25279079]
[1738948024355,36.22935425,195.88,195.82,0.0354517]
[1738948024558,0.03307002,195.83,195.82,0.0354517]
[1738948024751,4.8,195.9,195.7,36.22935425]
[1738948024752,36.22935425,195.84,195.7,36.22935425]
[1738948025055,36.26530352,195.84,195.81,0.0356095]
[1738948025249,5.1041,195.83,195.75,5.1061]
[1738948025449,37.86995425,195.94,195.78,36.22935425]
[1738948025649,37.86995425,195.94,195.81,0.03898386]
[1738948025948,0.03524511,195.88,195.78,36.22935425]
[1738948026148,0.03524511,195.88,195.86,0.03368555]
[1738948026343,1.5567,195.98,195.92,5.1015]
[1738948026545,37.86995425,196.02,195.86,36.22935425]
[1738948026746,3.1725,196.06,195.9,36.22935425]
[1738948026950,137.38935425,196.1,195.94,36.22935425]
[1738948027449,36.22935425,196.14,195.94,36.22935425]
[1738948027650,0.03344554,196.04,196.0,0.0322928]
[1738948027844,36.22935425,196.14,196.0,0.0322928]
[1738948028044,36.22935425,196.14,195.94,36.22935425]
[1738948028445,36.22935425,196.14,196.06,5.0981]
[1738948028651,36.22935425,196.14,195.94,160.48214504]
[1738948029047,4.8131,196.15,195.98,36.22935425]
[1738948029253,0.03635383,196.06,196.02,0.03407649]
[1738948029448,480.61152158,196.16,196.02,36.26343074]
[1738948029647,244.52113882,196.2,196.06,36.22935425]
[1738948029648,6.2862,196.2,196.06,36.22935425]
[1738948029846,36.22935425,196.28,196.1,36.22935425]
[1738948030046,36.22935425,196.32,196.15,36.22935425]
[1738948030653,5.0931,196.26,196.17,5.0952]
[1738948030853,0.03580305,196.25,196.22,0.03539425]
[1738948031849,36.22935425,196.24,196.09,36.22935425]
[1738948032054,36.22935425,196.24,196.03,124.25279079]
[1738948032055,37.83825425,196.24,196.05,36.22935425]
[1738948032256,36.22935425,196.2,196.08,5.0975]
[1738948032448,36.22935425,196.2,196.04,1.5019]
[1738948032649,36.22935425,196.2,196.03,124.25279079]
[1738948032947,36.22935425,196.2,196.0,36.22935425]
[1738948033151,0.03501601,196.13,196.1,0.03280903]
[1738948033655,36.22935425,196.2,196.1,0.03280903]
[1738948033852,1.5086,196.23,196.1,0.03280903]
[1738948034048,5.097,196.11,195.96,36.22935425]
[1738948034253,41.02935425,196.12,195.93,1.5019]
[1738948034449,36.22935425,196.08,195.93,1.5019]
[1738948034656,36.22935425,196.08,195.96,5.1007]
[1738948034854,36.22935425,196.08,195.91,27.99954596]
[1738948035252,36.22935425,196.08,195.98,0.03216479]
[1738948035253,0.03636318,196.01,195.98,0.03216479]
[1738948035748,36.22935425,196.04,195.98,0.03216479]
[1738948036156,0.03356001,196.01,195.98,0.03216479]
[1738948037351,36.22935425,196.0,195.83,124.25279079]
[1738948037659,36.22935425,196.0,195.81,1.5485]
[1738948037858,5.1016,195.93,195.85,5.1035]
[1738948038054,36.22935425,195.96,195.81,1.5485]
[1738948038460,4.78,195.98,195.81,1.5485]
[1738948038760,0.03463525,195.9,195.87,0.03509302]
[1738948038961,0.03463525,195.9,195.88,5.1028]
[1738948039162,4.78,196.08,195.88,36.22935425]
[1738948039556,36.22935425,196.01,195.84,36.22935425]
[1738948039957,36.22935425,196.01,195.82,1.649]
[1738948040359,1.5416,196.07,195.81,1.5485]
[1738948040360,36.22935425,195.96,195.81,1.5485]
[1738948040556,0.03722364,195.93,195.9,0.03722946]
[1738948040860,0.03722364,195.93,195.72,1.6427]
[1738948040861,36.22935425,195.92,195.72,3.1712]
[1738948041060,36.22935425,195.92,195.74,36.22935425]
[1738948041262,5.1016,195.93,195.86,5.1032]
[1738948041560,3.1968,195.96,195.82,36.22935425]
[1738948041760,1.5824,195.96,195.92,5.1017]
[1738948041961,4.78,195.97,195.92,5.1017]
[1738948042157,36.22935425,196.04,195.87,0.03755965]
[1738948042361,0.03515936,195.96,195.9,36.22935425]
[1738948042558,1.020252,196.03,195.94,36.22935425]
[1738948042767,1.020252,196.03,195.94,36.26546971]
[1738948043465,1.020252,196.03,195.94,0.03611546]
[1738948043658,37.81185425,196.08,195.94,0.03611546]
[1738948043857,5.1005,195.97,195.94,0.03611546]
[1738948044058,36.26714236,196.0,195.81,124.25279079]
[1738948044254,36.22935425,195.92,195.81,124.25279079]
[1738948044454,5.1027,195.89,195.83,5.104]
[1738948044761,0.03461609,195.88,195.85,0.03737862]
[1738948045162,36.22935425,195.96,195.8,36.22935425]
[1738948045458,0.03218585,195.88,195.85,0.03729827]
[1738948045662,0.03218585,195.88,195.86,5.1033]
[1738948045863,5.1019,195.92,195.86,5.1033]
[1738948046058,3.202,195.95,195.8,36.22935425]
[1738948046259,0.03333791,195.89,195.85,0.03853643]
[1738948046555,3.791e-05,195.89,195.85,0.03853643]
[1738948046754,3.791e-05,195.89,195.88,41.33215425]
[1738948047764,1.6139,196.06,195.88,72.4587085]
[1738948047966,2.63399588,196.06,195.96,36.22935425]
[1738948048165,1.02009588,196.06,195.96,36.22935425]
[1738948048363,1.02009588,196.06,196.05,5.0984]
[1738948048564,4.7152,196.18,196.05,5.0984]
[1738948048762,1.01952388,196.17,196.08,36.22935425]
[1738948048960,8.13e-06,196.13,196.1,0.03315329]
[1738948049367,8.13e-06,196.13,196.11,5.0969]
[1738948050256,8.13e-06,196.13,196.1,0.03315329]
[1738948051368,8.13e-06,196.13,196.11,5.0967]
[1738948052162,8.13e-06,196.13,196.12,36.22935425]
[1738948052468,3.201e-05,196.17,196.12,36.22935425]
[1738948052664,1.5446,196.25,196.12,36.22935425]
[1738948053771,0.03279556,196.2,196.17,0.03504883]
[1738948053961,9.556e-05,196.2,196.17,0.03504883]
[1738948054159,9.556e-05,196.2,196.19,5.0948]
[1738948054364,1.5446,196.34,196.17,1.58344883]
[1738948054568,1.5446,196.34,196.22,36.22935425]
[1738948055065,36.22935425,196.31,196.13,36.22935425]
[1738948055269,36.22935425,196.31,196.24,5.0934]
[1738948055566,0.03253397,196.24,196.2,0.03452949]
[1738948055963,36.22935425,196.31,196.23,5.0937]
[1738948056169,5.0923,196.29,196.13,36.22935425]
[1738948056365,0.03809497,196.24,196.2,0.03300174]
[1738948056767,36.22935425,196.27,196.1,124.25279079]
[1738948056963,36.22935425,196.27,196.09,36.22935425]
[1738948057568,41.04935425,196.31,196.13,36.22935425]
[1738948058071,0.0372467,196.24,196.2,0.03738695]
[1738948059468,0.0372467,196.24,196.22,5.0939]
[1738948059774,0.0372467,196.24,196.2,0.03738695]
[1738948060665,5.1307467,196.24,196.2,0.03738695]
[1738948060975,0.0372467,196.24,196.2,0.03738695]
[1738948061169,0.0372467,196.24,196.21,5.0941]
[1738948061376,0.0372467,196.24,196.2,0.03738695]
[1738948062271,0.0372467,196.24,196.23,5.0937]
[1738948062469,0.0372467,196.24,196.2,0.03738695]
[1738948062773,0.0372467,196.24,196.06,36.22935425]
[1738948062774,36.22935425,196.23,196.06,36.22935425]
[1738948062974,1.5676,196.22,196.06,36.22935425]
[1738948063970,1.5676,196.22,196.12,0.03375153]
[1738948064173,7.01e-05,196.16,196.14,36.22935425]
[1738948064471,37.85085425,196.35,196.23,5.0936]
[1738948064673,37.85085425,196.35,196.14,36.22935425]
[1738948064872,1.6215,196.35,196.18,36.22935425]
[1738948065073,1.6215,196.35,196.31,5.0916]
[1738948065269,1.6215,196.35,196.22,36.22935425]
[1738948065472,37.85085425,196.35,196.18,36.22935425]
[1738948065671,0.03564694,196.3,196.27,0.03497082]
[1738948066773,0.03564694,196.3,196.29,5.0922]
[1738948067474,0.03564694,196.3,196.27,0.03497082]
[1738948067475,0.03564694,196.3,196.28,5.0923]
[1738948067671,0.03564694,196.3,196.27,0.03497082]
[1738948068072,36.22935425,196.29,196.2,5.0943]
[1738948068271,36.22935425,196.29,196.15,1.6475]
[1738948068477,36.22935425,196.33,196.18,36.22935425]
[1738948068779,5.092,196.3,196.18,36.22935425]
[1738948069275,0.03836947,196.26,196.22,0.03839079]
[1738948069578,1.6547,196.34,196.18,36.22935425]
[1738948069773,0.03266353,196.26,196.2,5.0944]
[1738948069973,0.03266353,196.26,196.22,0.03912795]
[1738948070575,1.60666353,196.26,196.1,36.22935425]
[1738948070879,5.0935,196.24,196.17,5.0951]
[1738948071179,1.574,196.26,196.1,36.22935425]
[1738948071373,6.681,196.23,196.1,36.22935425]
[1738948071682,1.587,196.23,196.1,36.22935425]
[1738948071878,1.587,196.23,196.08,1.5586]
[1738948071879,0.0353435,196.18,196.15,0.03774033]
[1738948072079,0.0353435,196.18,196.17,5.0953]
[1738948072481,4.35e-05,196.18,196.17,5.0953]
[1738948072674,3.161,196.34,196.27,5.0925]
[1738948072875,3.161,196.34,196.2,36.22935425]
[1738948073080,5.0925,196.28,196.16,39.27845425]
[1738948073273,36.22935425,196.31,196.21,5.0942]
[1738948073478,36.22935425,196.31,196.16,39.27845425]
[1738948073976,0.03411788,196.25,196.22,0.03369127]
[1738948074378,0.03411788,196.25,196.24,5.0935]
[1738948075585,1.788e-05,196.25,196.24,5.0935]
[1738948077592,1.788e-05,196.25,196.22,0.03369127]
[1738948077788,1.788e-05,196.25,196.09,36.22935425]
[1738948077984,1.788e-05,196.25,196.17,5.0951]
[1738948078291,36.22935425,196.24,196.06,4.7273]
[1738948078481,3.1351,196.23,196.06,3.1754]
[1738948078680,36.22935425,196.2,196.05,6.99988649]
[1738948078887,36.22935425,196.2,196.1,5.0969]
[1738948079080,0.03843949,196.14,196.11,0.03358613]
[1738948079589,3.949e-05,196.14,196.13,5.0963]
[1738948080686,3.949e-05,196.14,196.11,5.13028613]
[1738948080997,3.949e-05,196.14,196.11,0.03358613]
[1738948081286,5.0963,196.13,196.11,0.03358613]
[1738948081487,3.949e-05,196.14,196.0,36.22935425]
[1738948081889,5.0969,196.11,196.05,5.0983]
[1738948082089,4.84,196.16,196.0,36.22935425]
[1738948082285,1.5941,196.15,196.0,36.22935425]
[1738948082491,5.0969,196.11,196.04,5.0987]
[1738948082685,36.22935425,196.12,195.95,3.2246]
[1738948082888,0.03699158,196.09,196.06,0.03478474]
[1738948083088,5.13439158,196.09,195.99,5.0999]
[1738948083287,0.03699158,196.09,195.95,1.6194]
[1738948083495,36.22935425,196.08,195.91,54.67220045]
[1738948084091,5.0989,196.04,195.96,5.1007]
[1738948084296,0.03642997,196.02,195.99,0.03256768]
[1738948084496,36.22935425,196.0,195.92,27.99954596]
[1738948084791,1.6559,195.99,195.92,27.99954596]
[1738948084990,4.84,196.05,195.92,27.99954596]
[1738948085304,36.22935425,196.12,195.93,36.22935425]
[1738948085496,4.84,196.13,195.92,29.55354596]
[1738948085497,36.22935425,196.08,195.92,29.55354596]
[1738948085798,0.03667713,196.04,196.01,0.03274835]
[1738948086297,4.82,196.11,195.96,36.22935425]
[1738948086489,0.03807542,196.04,196.01,0.03723064]
[1738948086686,0.03807542,196.04,196.03,5.0989]
[1738948086687,7.542e-05,196.04,196.03,5.0989]
[1738948086886,4.82,196.11,196.01,0.03723064]
[1738948087091,36.22935425,196.24,196.04,36.22935425]
[1738948087297,0.92734092,196.23,196.04,36.22935425]
[1738948087592,39.46905425,196.24,196.04,36.22935425]
[1738948087800,3.2397,196.24,196.12,36.22935425]
[1738948087993,5.443e-05,196.16,196.12,36.26297788]
[1738948088194,3.2397,196.24,196.12,36.22935425]
[1738948088592,17.03941243,196.25,196.16,36.22935425]
[1738948088997,17.03941243,196.25,196.23,5.0935]
[1738948089801,0.0363145,196.26,196.25,5.0932]
[1738948090196,0.0363145,196.26,196.2,36.22935425]
[1738948090197,81.00437385,196.46,196.29,5.0921]
[1738948090412,1.6533,196.37,196.2,36.22935425]
[1738948090799,5.0904,196.36,196.25,5.0932]
[1738948090999,1.6533,196.37,196.2,36.22935425]
[1738948091601,0.03572133,196.3,196.28,5.0924]
[1738948092006,1.6533,196.37,196.31,5.0916]
[1738948092303,0.03367203,196.31,196.27,0.03671271]
[1738948092503,0.03367203,196.31,196.2,36.22935425]
[1738948092803,1.6533,196.37,196.27,0.03560643]
[1738948093202,0.0358979,196.34,196.32,5.0913]
[1738948093901,0.0358979,196.34,196.31,5.12670051]
[1738948094101,0.0358979,196.34,196.31,0.03510051]
[1738948094305,4.8,196.45,196.37,5.09]
[1738948094808,7.9453,196.48,196.31,0.03406734]
[1738948094998,0.03743616,196.43,196.28,36.22935425]
[1738948095200,0.03743616,196.43,196.38,0.0381068]
[1738948095403,3.1453,196.48,196.38,0.0381068]
[1738948095603,0.03777863,196.42,196.32,36.22935425]
[1738948095901,0.03777863,196.42,196.41,0.03473086]
[1738948096108,0.03777863,196.42,196.32,36.22935425]
[1738948096497,0.03777863,196.42,196.41,5.0891]
[1738948096805,0.03777863,196.42,196.32,36.22935425]
[1738948097113,0.03777863,196.42,196.41,5.0891]
[1738948097405,0.03777863,196.42,196.4,0.03751646]
[1738948097600,0.03777863,196.42,196.41,5.0891]
[1738948098002,7.863e-05,196.42,196.41,5.0891]
[1738948098412,7.863e-05,196.42,196.4,0.03751646]
[1738948100107,7.863e-05,196.42,196.4,1.66211646]
[1738948100312,7.863e-05,196.42,196.41,5.0891]
[1738948101206,7.863e-05,196.42,196.4,0.03751646]
[1738948101707,7.863e-05,196.42,196.41,5.0891]
[1738948102212,7.863e-05,196.42,196.4,0.03751646]
[1738948103609,7.863e-05,196.42,196.41,5.0891]
[1738948103804,7.863e-05,196.42,196.41,41.31845425]
[1738948104009,0.92630152,196.57,196.41,36.22935425]
[1738948104210,4.5802,196.58,196.5,5.0867]
[1738948104415,4.5802,196.58,196.41,36.22935425]
[1738948104914,4.5802,196.58,196.45,36.22935425]
[1738948105415,0.03237839,196.53,196.5,0.03829367]
[1738948106612,0.03237839,196.53,196.52,5.0862]
[1738948106915,0.03237839,196.53,196.5,0.03829367]
[1738948107815,5.0862,196.52,196.5,0.03829367]
[1738948108112,0.03237839,196.53,196.5,0.03829367]
[1738948109715,0.03237839,196.53,196.42,124.25279079]
[1738948109912,36.22935425,196.52,196.37,36.22935425]
[1738948110206,4.76,196.51,196.33,165.21244504]
[1738948110407,4.76,196.51,196.39,5.0895]